Cogmind - Beta 13 @@@ ROGUE MODE // 2024.04.02 @ 23:32:42 Player: Bulbasornado Result: Destroyed self with Rocket Launcher Performance ------------- Evolutions (0) 0 Regions Visited (4) 800 Robots Destroyed (41) 205 Value Destroyed (876) 876 Prototype IDs (25) 500 Alien Tech Used (0) 0 Bonus (316) 316 TOTAL SCORE: 2697 Bonus ------- High Alert Combat Kills 16 Aligned with FarCom 300 Cogmind --------- Core Integrity 0/250 Matter 245/300 Energy 125/125 System Corruption 1% Temperature Cool (0) Movement Walking (120) Location -9/Mines Parts ------- > --- POWER (1) -------- Light Ion Engine > --- PROPULSION (2) --- Aluminum Leg Aluminum Leg > --- UTILITY (2) ------ Small Storage Unit Signal Interpreter > --- WEAPON (2) ------- Light Cannon Rocket Launcher > --- INVENTORY (8) ---- Light Ion Engine Aluminum Leg Signal Interpreter Targeting Computer Utility Shielding Particle Gun Assault Rifle Hammer Peak State ------------ > --- POWER ------------ Light Ion Engine > --- PROPULSION ------- Wheel Compact Wheel > --- UTILITY ---------- Small Storage Unit Improved Terrain Scanner > --- WEAPON ----------- EM Pulse Gun Assault Rifle > --- INVENTORY -------- Ion Engine Light Treads Light Treads Compact Wheel Assault Rifle [Rating: 9] Favorites ----------- Power Light Ion Engine Engine Light Ion Engine Propulsion Aluminum Leg Leg Aluminum Leg Wheel Wheel Utility Small Storage Unit Device Seismic Detector Storage Small Storage Unit Processor Signal Interpreter Weapon Assault Rifle Energy Gun Particle Gun Ballistic Gun Assault Rifle Ballistic Cannon Light Cannon Launcher Rocket Launcher Impact Weapon Hammer Build | -11 -10 -10 -10 -9 ------- Run | Yrd Mat Min Exi Min Slots Evolved . | . . . . . Power . | . . . . . Propulsion . | . . . . . Utility . | . . . . . Weapon . | . . . . . Parts Attached 37 | 9 24 3 . 1 Power 7 | 1 6 . . . Engine 7 | 1 6 . . . Core . | . . . . . Reactor . | . . . . . Propulsion 15 | 3 11 1 . . Treads . | . . . . . Leg 11 | . 10 1 . . Wheel 4 | 3 1 . . . Hover . | . . . . . Flight . | . . . . . Utility 5 | 3 2 . . . Device 2 | 2 . . . . Storage 2 | 1 1 . . . Processor 1 | . 1 . . . Hackware . | . . . . . Protection . | . . . . . Artifact . | . . . . . Weapon 10 | 2 5 2 . 1 Energy Gun 4 | 1 3 . . . Energy Cannon . | . . . . . Ballistic Gun 3 | 1 2 . . . Ballistic Cannon 1 | . . . . 1 Launcher 1 | . . 1 . . Special Weapon . | . . . . . Impact Weapon 1 | . . 1 . . Slashing Weapon . | . . . . . Piercing Weapon . | . . . . . Special Melee Weapon . | . . . . . Unidentified Prototypes . | . . . . . Parts Lost . | . . . . . Power . | . . . . . Propulsion . | . . . . . Utility . | . . . . . Weapon . | . . . . . Highest Loss Streak . | . . . . . To Critical Strikes . | . . . . . Average Slot Usage (%) 99 | . 99 100 100 100 Engine 14 | . 14 14 14 14 Leg 25 | . 23 28 28 28 Wheel 2 | . 4 . . . Device 3 | . 5 . . . Storage 14 | . 14 14 14 14 Processor 10 | . 8 14 14 14 Energy Gun 8 | . 14 3 . . Ballistic Gun 8 | . 14 5 . . Launcher 5 | . . 8 14 14 Impact Weapon 5 | . . 10 14 10 Naked Turns . | . . . . . Heaviest Build 15 | 13 14 14 14 15 Greatest Support 26 | 26 20 20 20 20 Greatest Overweight (x) 1 | . 1 . . . Average Overweight (x) . | . . . . . Largest Inventory Capacity 8 | 8 8 8 8 8 Average Capacity 7 | 7 8 8 8 8 Most Carried 8 | 8 8 8 8 8 Average Carried 7 | 4 7 8 8 8 Final Capacity 8 | 8 8 8 8 8 Final Carried 8 | 8 8 8 8 8 Class Distribution -------------------- 66% | Scavenger-Mutant 33% | Mutant Dominant Class ---------------- Scavenger-Mutant | -10/Materials Scavenger-Mutant | -10/Mines Scavenger-Mutant | -10/Exiles Scavenger-Mutant | -9/Mines Resources | -11 -10 -10 -10 -9 ----------- Run | Yrd Mat Min Exi Min Matter Collected 836 | 290 494 30 . 22 Remotely . | . . . . . Salvage Created 1277 | 250 894 115 . 18 Parts 87 | 20 60 4 . 3 Haulers Intercepted 1 | . 1 . . . Recyclers Shooed . | . . . . . Parts Field Recycled . | . . . . . Retrieved Matter . | . . . . . Parts Self-Destructed . | . . . . . Prevented . | . . . . . Kills | -11 -10 -10 -10 -9 ------- Run | Yrd Mat Min Exi Min Combat Hostiles Destroyed 24 | . 18 3 . 3 Melee 2 | . . 2 . . Guns 18 | . 18 . . . Cannons 1 | . . . . 1 AOE 2 | . . . . 2 Classes Destroyed 9 | 3 6 . . . Worker 4 | 2 2 . . . Builder 1 | . 1 . . . Tunneler 5 | 5 . . . . Hauler 1 | . 1 . . . Recycler 2 | 1 1 . . . Operator 1 | . 1 . . . Watcher 3 | . 3 . . . Swarmer 6 | . 3 . . 3 Grunt 18 | . 15 3 . . Best Kill Streak 9 | 4 9 2 . 3 Combat Bots Only 7 | . 7 2 . 3 Max Kills in Single Turn 2 | 1 1 1 . 2 Gunslinging . | . . . . . Exploded 2 | . . . . 2 Melee 1 | . . 1 . . Uniques/NPCs Destroyed . | . . . . . Combat | -11 -10 -10 -10 -9 -------- Run | Yrd Mat Min Exi Min Hostile Shots Fired 109 | . 94 10 . 5 Missed 22 | . 17 4 . 1 Damage Taken 1035 | . 886 94 . 55 Core 258 | . 223 16 . 19 Absorbed by Shields . | . . . . . Regen/Repaired (Parts) 41 | . 41 . . . Core Remaining (%) 100 | 100 . . . . Volleys Fired 104 | 18 79 . . 7 Largest 2 | 1 2 . . 1 Hottest 85 | 40 85 . . 35 Shots Fired 182 | 18 157 . . 7 Gun 175 | 18 157 . . . Cannon 3 | . . . . 3 Launcher 4 | . . . . 4 Special . | . . . . . Kinetic 82 | . 79 . . 3 Thermal 60 | . 60 . . . Explosive 4 | . . . . 4 Electromagnetic 36 | 18 18 . . . Robot Hit Streak 14 | 11 14 . . 2 Robot Miss Streak 4 | 2 4 . . 1 Penetration Max . | . . . . . Secondary Targets 1 | . 1 . . . Max Gunslinging Chain 1 | . 1 . . . Shots Hit Robots 115 | 14 94 5 . 2 Core Hits 56 | 9 40 3 . 4 Critical Kills . | . . . . . Critical Parts Destroyed . | . . . . . Critical Strikes 4 | . 4 . . . Burn 3 | . 3 . . . Corrupt 1 | . 1 . . . Melee Attacks 6 | . . 6 . . Impact 6 | . . 6 . . Slashing . | . . . . . Piercing . | . . . . . Sneak Attacks . | . . . . . Combat Hostiles . | . . . . . Follow-up Attacks . | . . . . . Damage Inflicted 1846 | 190 1320 143 . 193 Guns 1510 | 190 1320 . . . Cannons 33 | . . . . 33 Explosions 160 | . . . . 160 Melee 143 | . . 143 . . Ramming . | . . . . . Kinetic 669 | . 636 . . 33 Thermal 588 | . 588 . . . Explosive 160 | . . . . 160 Electromagnetic 286 | 190 96 . . . Impact 143 | . . 143 . . Slashing . | . . . . . Piercing . | . . . . . Highest Corruption 1 | . 1 1 1 1 Average Corruption 1 | . 1 1 1 1 Corruption Purged . | . . . . . Corruption Blocked . | . . . . . Effects 10 | . 6 1 1 2 Message Errors 3 | . 2 . 1 . Matter Fused 4 | . 2 . . 2 Heat Flow Errors 1 | . . 1 . . Data Loss (minor) 1 | . 1 . . . Alerts 1 | . 1 . . . Overload Shots . | . . . . . Overflow Damage 2 | . . 2 . . Projectiles . | . . . . . Explosions . | . . . . . Melee 2 | . . 2 . . Knockbacks . | . . . . . Impact . | . . . . . Kinetic . | . . . . . Secondary . | . . . . . Self-Inflicted Damage 41 | . . . . 41 Shots 1 | . . . . 1 Rammed . | . . . . . Targets Rammed . | . . . . . Kicked . | . . . . . Crushed . | . . . . . Highest Temperature 423 | . 423 153 . . Average Temperature 144 | . 146 79 . . Received Heat Transfer 432 | . 378 54 . . Effects 2 | . 2 . . . Interference 2 | . 2 . . . Siege Activations . | . . . . . Robots Corrupted . | . . . . . Combat Hostiles . | . . . . . Parts Fried 2 | . 1 1 . . Impact Corruptions 1 | . . 1 . . Robots Melted . | . . . . . Combat Hostiles . | . . . . . Parts Melted 1 | . 1 . . . Heat Transferred 1628 | . 1628 . . . Parts Sabotaged . | . . . . . Parts Stolen . | . . . . . Parts Stripped . | . . . . . Power Chain Reactions . | . . . . . Alert | -11 -10 -10 -10 -9 ------- Run | Yrd Mat Min Exi Min Peak Influence 447 | 40 447 138 . 128 Initial 43 | . 26 43 . . Average 137 | 14 171 104 . 43 Maximum Alert Level 2 | . 2 . . . Low Security (%) 81 | 100 73 100 . 100 Level 1 13 | . 19 . . . Level 2 4 | . 6 . . . Level 3 . | . . . . . Level 4 . | . . . . . Level 5 . | . . . . . High Security . | . . . . . Max Security . | . . . . . Squads Dispatched 5 | . 5 . . . Investigation 3 | . 3 . . . Extermination . | . . . . . Reinforcement 2 | . 2 . . . Assault . | . . . . . Garrison . | . . . . . Intercept . | . . . . . Searches Triggered . | . . . . . Construction Impeded . | . . . . . Haulers Reinforced . | . . . . . Active Scanning Responses . | . . . . . Cargo Convoy Interrupts . | . . . . . Stealth | -11 -10 -10 -10 -9 --------- Run | Yrd Mat Min Exi Min Distress Signals 5 | . 5 . . . Communications Jammed . | . . . . . Distress Signals . | . . . . . Times Spotted 32 | . 26 4 . 2 Peak Tracking Total 7 | . 7 3 . 3 Tactical Retreats 1 | . 1 . . . Traps | -11 -10 -10 -10 -9 ------- Run | Yrd Mat Min Exi Min Traps Triggered 5 | . 5 . . . Indirectly . | . . . . . Trap Hack Attempts . | . . . . . Triggered . | . . . . . Disarmed . | . . . . . Reprogrammed . | . . . . . Reused . | . . . . . Traps Extracted . | . . . . . Installed . | . . . . . Triggered . | . . . . . Machines | -11 -10 -10 -10 -9 ---------- Run | Yrd Mat Min Exi Min Machines Disabled 3 | . 2 . . 1 Max in Single Turn 1 | . 1 . . 1 Machines Repaired . | . . . . . Machines Dismantled . | . . . . . Machines Sabotaged . | . . . . . Overloaded Fab Kills . | . . . . . Hacking | -11 -10 -10 -10 -9 --------- Run | Yrd Mat Min Exi Min Machines Accessed 9 | . 8 . 1 . Terminals 5 | . 5 . . . Fabricators . | . . . . . Repair Stations 1 | . 1 . . . Recycling Units 2 | . 2 . . . Scanalyzers . | . . . . . Garrison Access . | . . . . . Total Hacks 24 | . 23 . 1 . Successful 11 | . 10 . 1 . Failed 13 | . 13 . . . Catastrophic . | . . . . . Database Lockouts . | . . . . . Manual 1 | . . . 1 . Terminals 17 | . 17 . . . Fabricators . | . . . . . Repair Stations 3 | . 3 . . . Recycling Units 3 | . 3 . . . Scanalyzers . | . . . . . Garrison Access . | . . . . . Terminal Hacks 8 | . 7 . 1 . Robot Analysis 1 | . 1 . . . Prototype ID Bank 1 | . 1 . . . Recycling Unit Index 1 | . 1 . . . Alert Level 2 | . 2 . . . Unreport Threat 1 | . 1 . . . Locate Traps 1 | . 1 . . . Derelict Proto ID Bank 1 | . . . 1 . Fabricator Hacks . | . . . . . Repair Station Hacks 2 | . 2 . . . Scan Component 1 | . 1 . . . Repair 1 | . 1 . . . Recycling Unit Hacks 1 | . 1 . . . Report Inventory 1 | . 1 . . . Scanalyzer . | . . . . . Garrison Access Hacks . | . . . . . Unauthorized Hacks . | . . . . . Terminals . | . . . . . Fabricators . | . . . . . Repair Stations . | . . . . . Recycling Units . | . . . . . Scanalyzers . | . . . . . Garrison Access . | . . . . . Data Cores Recovered . | . . . . . Used . | . . . . . Hacking Detections 6 | . 6 . . . Full Trace Events 1 | . 1 . . . Feedback Events . | . . . . . Feedback Blocked . | . . . . . Robot Schematics Acquired . | . . . . . Robots Built . | . . . . . Authchips . | . . . . . Time . | . . . . . Total Robot Build Rating . | . . . . . Part Schematics Acquired . | . . . . . Parts Built . | . . . . . Authchips . | . . . . . Time . | . . . . . Total Part Build Rating . | . . . . . Parts Repaired 1 | . 1 . . . Time 26 | . 26 . . . Parts Recycled . | . . . . . Recycled Matter . | . . . . . Retrieved Matter . | . . . . . Retrieved Components . | . . . . . Parts Scanalyzed . | . . . . . Part Schematics Acquired . | . . . . . Parts Damaged . | . . . . . Bothacking | -11 -10 -10 -10 -9 ------------ Run | Yrd Mat Min Exi Min Used RIF Installer . | . . . . . Robots Hacked . | . . . . . Non-combat . | . . . . . Combat . | . . . . . Robot Hacks Applied . | . . . . . Relay Couplers Released . | . . . . . Fabnet Peak Effective % . | . . . . . Robots Rewired . | . . . . . Allies Hacked . | . . . . . Hacks Repelled . | . . . . . Allies | -11 -10 -10 -10 -9 -------- Run | Yrd Mat Min Exi Min Total Allies . | . . . . . Largest Group . | . . . . . Highest-Rated Group . | . . . . . Highest-Rated Ally . | . . . . . Total Orders . | . . . . . Ally Attacks . | . . . . . Total Damage . | . . . . . Kills . | . . . . . Allies Corrupted . | . . . . . Allies Melted . | . . . . . Intel | -11 -10 -10 -10 -9 ------- Run | Yrd Mat Min Exi Min Robot Analysis Total 1 | . 1 . . . Derelict Logs Recovered 3 | . . 2 . 1 Drone Launches . | . . . . . Drone Recoveries . | . . . . . Exploration | -11 -10 -10 -10 -9 ------------- Run | Yrd Mat Min Exi Min Turns Passed 2054 | 119 1119 182 455 179 Spaces Moved 1363 | 69 661 134 380 119 Core 6 | 6 . . . . Treads . | . . . . . Legs 1248 | . 615 134 380 119 Wheels 109 | 63 46 . . . Hover . | . . . . . Flight . | . . . . . Fastest Speed 50 | 50 80 120 120 120 Average Speed 117 | 85 117 120 120 120 Slowest Speed 190 | 100 190 120 120 120 Overloaded Moves . | . . . . . Propulsion Burnouts . | . . . . . Robots Hopped . | . . . . . Cave-ins Triggered . | . . . . . Exploration Rate (%) 45 | 5 95 28 88 10 Regions Visited 4 Branch Regions 3 Pre-discovered Areas 2 | . . 1 . 1 Known Exits Taken 3 | . 1 1 1 . Unknown Exits Taken 1 | 1 . . . . Scrap Searched 1 | . . 1 . . Spaces Dug 11 | . . . . 11 Terrain Destroyed 48 | . . . . 48 Melee . | . . . . . Projectile . | . . . . . AOE 48 | . . . . 48 Terrain Rammed . | . . . . . Walls Destroyed . | . . . . . Machines Disabled . | . . . . . Actions | -11 -10 -10 -10 -9 --------- Run | Yrd Mat Min Exi Min Total 1639 | 109 857 145 379 149 Wait 70 | . 48 . . 22 Move 1359 | 68 660 133 379 119 Hop . | . . . . . Pick Up 30 | 12 17 1 . . Fast Attach 8 | 4 4 . . . Attach 4 | 4 . . . . Detach . | . . . . . Swap 25 | 1 20 3 . 1 Drop 33 | 2 29 2 . . Fire 104 | 18 79 . . 7 Melee 6 | . . 6 . . Ram . | . . . . . Kick . | . . . . . Crush . | . . . . . Escape Stasis . | . . . . . Rewire . | . . . . . Trap . | . . . . . Miscellaneous . | . . . . . Route ------- -11/Scrapyard -10/Materials (discovered 4 exits: *Mat x3 / *Min) -10/Mines (discovered 2 exits: *Mat / *Exi) -10/Exiles (discovered 2 exits: *Min x2) -9/Mines History --------- Turn | Location | Event 18 | -11/Scrapyard | Discovered new exit (range 14) 120 | -11/Scrapyard | Entered Materials 275 | -10/Materials | Core integrity fell below 50% 296 | -10/Materials | Destroyed 7 combat bots 410 | -10/Materials | Discovered new exit (range 11) 582 | -10/Materials | Build established: Scavenger-Mutant 644 | -10/Materials | Discovered new exit (range 14) 659 | -10/Materials | Identified exit to Mines 735 | -10/Materials | Discovered new exit (range 9) 765 | -10/Materials | Identified exit to Materials 847 | -10/Materials | Discovered exit to Materials (range 14) 858 | -10/Materials | Core integrity fell below 20% 972 | -10/Materials | Repaired Aluminum Leg 1230 | -10/Materials | Build established: Mutant 1239 | -10/Materials | Entered Mines 1311 | -10/Mines | Learned Materials interactive machine intel 1318 | -10/Mines | Learned location of Recycling (-7) 1394 | -10/Mines | Discovered exit to Materials (range 7) 1415 | -10/Mines | Deemed a non-threat by the Exiles lab entrance 1415 | -10/Mines | Discovered new exit (range 5) 1419 | -10/Mines | Identified exit to Exiles 1421 | -10/Mines | Entered Exiles 1438 | -10/Exiles | Discovered new exit (range 14) 1453 | -10/Exiles | Identified exit to Mines 1478 | -10/Exiles | Met 8R-AWN 1496 | -10/Exiles | Met EX-HEX 1531 | -10/Exiles | Met EX-BIN 1544 | -10/Exiles | Aligned with FarCom system 1545 | -10/Exiles | Given EX-Vault access code 1573 | -10/Exiles | Opened EX-Vault 1601 | -10/Exiles | Warned to stay clear of 0b10 Research branches 1630 | -10/Exiles | Build established: Scavenger-Mutant 1631 | -10/Exiles | Met EX-DEC 1672 | -10/Exiles | Visited The Gauntlet 1861 | -10/Exiles | Discovered exit to Mines (range 14) 1876 | -10/Exiles | Entered Mines 1887 | -9/Mines | Learned location of Zion (-6) 2055 | -9/Mines | Destroyed self with Rocket Launcher Last Messages --------------- sneak in here and steal a few of HEX's prototypes. EX-DEC: Ah I see we have a visitor. One wrong move in here and I'll invert your atomic chain! 01633_ EX-DEC: "Oops, I hope HEX didn't hear that..." 01792_ RB D0,WFD6T2 01881_ System corrupted: Matter fused (-5). 01884_ K-01 Serf collects debris. 01887_ Acquired derelict log, extracted data. World map updated: -6/Zion. 01987_ System corrupted: Matter fused (-6). 02001_ Laser Drill disabled. 02011_ S-10 Pest destroyed. 02014_ Acquired 2 matter. 02020_ Acquired 7 matter. 02022_ Acquired 9 matter. Map ----- +----------------------------------------------------+ | | | | | | | | | | | | | | | | | | | | | ????????????????????????????????? | | ????????????????????????????????? | | ??????????????????#?????????????? | | ?????????????????? ????????????? | | ??????????????????? ????#?#?????? | | ??????????????????? ???? # ?????? | | ??????????????????? g?? ?????? | | ??????????????????? ???g ?????? | | ??????????????????? ?g? ?????? | | ???????????????????# ??? ?????? | | ???????????????????# ??## ##????? | | ???????????????????# ??# ????? | | ???????????????????# ??# #????? | | ?????????????????### ### ##???? | | ?????????????????# # #???? | | ?????????????????# # @ #???? | | ?????????????????# ## ###???? | | ?????????????????# ## #???? | | ?????????????????# #### #???? | | ?????????????????# #??# #???? | | ?????????????????#### ##??# #???? | | ????????????????????# #???# #???? | | ????????????????????# #???# #???? | | ????????????????????# #???# #???? | | ????????????????????# ##### ###?? | | ????????????????????# #?? | | ????????????????????######### #?? | | ??????????????????##### ## #?? | | ??????????????????# #[#?? | | ??????????????????# #?? | | ????????????????# = ###?? | | ????????????????## ##???? | | ????????????????# = ##????? | | ????????????????# #?????? | | ????????????????## #?????? | | ?????????????????## #####?????? | | ??????????????????####??????????? | | ????????????????????????????????? | | ????????????????????????????????? | | ????????????????????????????????? | +----------------------------------------------------+ Best States ------------- Heat Dissipation 25 Energy Generation 10 Energy Capacity 125 Matter Stores 300 Matter Capacity 300 Sight Range 16 Terrain Scan Range 16 Terrain Scan Density 10 Evasion (%) 55 Item Schematics ----------------- None Robot Schematics ------------------ None Fabricated ------------ Nothing Alien Tech Used ----------------- None Achievements -------------- None Challenges ------------ None Game ------ Seed DeepMakeshiftGenerator Manual? 0 Play Time 00:36:53 Cumulative 30.0 hours Start 2024.04.02 @ 22:53:19 End 2024.04.02 @ 23:32:42 Sessions 1 Manual Loads 0 Difficulty Rogue Special Mode None Game No. 11 Rogue 10 Adventurer 1 Explorer 0 Win Type - Total 0 Types 0/0/0/0/0/0/0/0/0 Lore% 17 Gallery% 20 Achievement% 17 Wizard Run 0 Options --------- Layout 0 ASCII 0 Keyboard 0 Movement Mouse Keybinds 0 Fullscreen 2 Font 18/Smallcaps Map View 76x50 Zoom Use 0% Tactical HUD 1 Map Filters NONE Filters NONE Steam 1 RUN: fd4e2de6-0b60-459c-b472-11802b86384f